[Event "Late-Titled-Tuesday-Blitz-February-06-2024"]
[Site "Chess.com"]
[Date "2024.02.06"]
[Round "2"]
[White "vanyakuba"]
[Black "GothamChess"]
[Result "1/2-1/2"]
[WhiteElo "2343"]
[BlackElo "2694"]
[TimeControl "180+1"]
[EndTime "14:16:27 PST"]
[Termination "Game drawn by repetition"]

1. e4 {[%clk 0:03:00.9]} 1... e6 {[%clk 0:02:58.6]} 2. d4 {[%clk 0:03:00.6]}
2... d5 {[%clk 0:02:59]} 3. exd5 {[%clk 0:03:01.5]} 3... exd5 {[%clk 0:02:57.7]}
4. Nf3 {[%clk 0:03:02.4]} 4... Nc6 {[%clk 0:02:57.7]} 5. c4 {[%clk 0:03:02.5]}
5... dxc4 {[%clk 0:02:57.6]} 6. Bxc4 {[%clk 0:03:02.2]} 6... Bb4+ {[%clk
0:02:56.5]} 7. Nc3 {[%clk 0:03:02]} 7... Nf6 {[%clk 0:02:55.8]} 8. O-O {[%clk
0:02:59.9]} 8... O-O {[%clk 0:02:56.3]} 9. Be3 {[%clk 0:02:41.8]} 9... Bg4
{[%clk 0:02:47.9]} 10. h3 {[%clk 0:02:41.7]} 10... Bh5 {[%clk 0:02:48]} 11. g4
{[%clk 0:02:41.5]} 11... Bg6 {[%clk 0:02:47.8]} 12. Ne5 {[%clk 0:02:41.7]} 12...
Qd6 {[%clk 0:02:39]} 13. f4 {[%clk 0:02:31.2]} 13... Ne4 {[%clk 0:02:29.7]} 14.
Nxg6 {[%clk 0:01:41.7]} 14... Bxc3 {[%clk 0:02:25.7]} 15. Nxf8 {[%clk
0:01:32.6]} 15... Bxb2 {[%clk 0:02:23.1]} 16. Qd3 {[%clk 0:00:47]} 16... Bxa1
{[%clk 0:02:11.4]} 17. Qxe4 {[%clk 0:00:38.4]} 17... Bxd4 {[%clk 0:02:05.3]} 18.
Bxd4 {[%clk 0:00:11.3]} 18... Nxd4 {[%clk 0:02:05.4]} 19. Qxh7+ {[%clk
0:00:08.3]} 19... Kxf8 {[%clk 0:02:06]} 20. Qh8+ {[%clk 0:00:08.4]} 20... Ke7
{[%clk 0:02:06.8]} 21. Qxa8 {[%clk 0:00:08.1]} 21... Qc5 {[%clk 0:02:07.1]} 22.
Re1+ {[%clk 0:00:03]} 22... Ne6+ {[%clk 0:02:07.2]} 23. Kg2 {[%clk 0:00:02.4]}
23... Qxc4 {[%clk 0:02:06.8]} 24. f5 {[%clk 0:00:02.9]} 24... Qxa2+ {[%clk
0:02:01.1]} 25. Kf1 {[%clk 0:00:03.2]} 25... Qc4+ {[%clk 0:02:01]} 26. Re2
{[%clk 0:00:02.8]} 26... Qc1+ {[%clk 0:02:00.3]} 27. Kf2 {[%clk 0:00:03]} 27...
Qf4+ {[%clk 0:02:00.1]} 28. Ke1 {[%clk 0:00:03.3]} 28... Qc1+ {[%clk 0:01:58.5]}
29. Kf2 {[%clk 0:00:03.7]} 29... Qf4+ {[%clk 0:01:58.2]} 30. Kg2 {[%clk
0:00:03.9]} 30... Qc4 {[%clk 0:01:57.5]} 31. Kf2 {[%clk 0:00:03.4]} 31... Qf4+
{[%clk 0:01:40]} 1/2-1/2

[Event "Late-Titled-Tuesday-Blitz-February-06-2024"]
[Site "Chess.com"]
[Date "2024.02.06"]
[Round "2"]
[White "Zavgorodniy_Sergiy"]
[Black "GMBenjaminBok"]
[Result "0-1"]
[WhiteElo "2613"]
[BlackElo "2988"]
[TimeControl "180+1"]
[EndTime "14:16:34 PST"]
[Termination "GMBenjaminBok won by resignation"]

1. d4 {[%clk 0:03:00.9]} 1... Nf6 {[%clk 0:02:59.8]} 2. c4 {[%clk 0:03:00.9]}
2... e6 {[%clk 0:03:00.5]} 3. Nf3 {[%clk 0:03:01]} 3... b6 {[%clk 0:02:59.8]} 4.
g3 {[%clk 0:03:00.9]} 4... Ba6 {[%clk 0:03:00]} 5. Nbd2 {[%clk 0:03:00.5]} 5...
Bb7 {[%clk 0:02:59.7]} 6. Bg2 {[%clk 0:03:00.9]} 6... Be7 {[%clk 0:03:00]} 7.
O-O {[%clk 0:03:01.1]} 7... O-O {[%clk 0:03:00.6]} 8. b3 {[%clk 0:03:01.6]} 8...
c5 {[%clk 0:03:00.9]} 9. Bb2 {[%clk 0:03:01.8]} 9... Qc7 {[%clk 0:03:01.3]} 10.
Rc1 {[%clk 0:02:59.5]} 10... cxd4 {[%clk 0:02:58.7]} 11. Nxd4 {[%clk 0:03:00.4]}
11... Bxg2 {[%clk 0:02:58.8]} 12. Kxg2 {[%clk 0:03:01.3]} 12... a6 {[%clk
0:02:48.2]} 13. Qc2 {[%clk 0:02:59.6]} 13... d6 {[%clk 0:02:40.6]} 14. a4 {[%clk
0:02:58.7]} 14... Nbd7 {[%clk 0:02:39.6]} 15. Kg1 {[%clk 0:02:57.8]} 15... Rfc8
{[%clk 0:02:39.2]} 16. Qb1 {[%clk 0:02:55.9]} 16... Qb7 {[%clk 0:02:39.2]} 17.
Ba1 {[%clk 0:02:54.2]} 17... h6 {[%clk 0:02:38.5]} 18. Rfd1 {[%clk 0:02:53.6]}
18... Nc5 {[%clk 0:02:36.8]} 19. e3 {[%clk 0:02:51.7]} 19... Rab8 {[%clk
0:02:28]} 20. Qc2 {[%clk 0:02:44.9]} 20... Ncd7 {[%clk 0:02:16.5]} 21. Qd3
{[%clk 0:02:41.5]} 21... Ne5 {[%clk 0:02:13.6]} 22. Qe2 {[%clk 0:02:41.5]} 22...
Nfd7 {[%clk 0:02:11.7]} 23. h3 {[%clk 0:02:40.9]} 23... Nc5 {[%clk 0:02:09.9]}
24. Rb1 {[%clk 0:02:41.1]} 24... Bf6 {[%clk 0:02:05.3]} 25. N2f3 {[%clk
0:02:36.9]} 25... Nxf3+ {[%clk 0:02:00.7]} 26. Qxf3 {[%clk 0:02:28.2]} 26...
Qxf3 {[%clk 0:01:58.4]} 27. Nxf3 {[%clk 0:02:29.1]} 27... Bxa1 {[%clk
0:01:58.8]} 28. Rxa1 {[%clk 0:02:30]} 28... Nxb3 {[%clk 0:01:57.8]} 29. Rab1
{[%clk 0:02:30.1]} 29... Na5 {[%clk 0:01:29]} 30. Rxd6 {[%clk 0:02:29.3]} 30...
Nxc4 {[%clk 0:01:29.1]} 31. Rd7 {[%clk 0:02:28.2]} 31... b5 {[%clk 0:01:24.5]}
32. axb5 {[%clk 0:02:28.7]} 32... axb5 {[%clk 0:01:24]} 33. Nd4 {[%clk
0:02:19.8]} 33... b4 {[%clk 0:01:22.7]} 34. Nb3 {[%clk 0:02:15.3]} 34... g6
{[%clk 0:01:18.6]} 35. Rc1 {[%clk 0:01:59.6]} 35... Ne5 {[%clk 0:01:11.1]} 36.
Rxc8+ {[%clk 0:01:57]} 36... Rxc8 {[%clk 0:01:12]} 37. Rb7 {[%clk 0:01:57.1]}
37... Nd3 {[%clk 0:01:08.8]} 38. Nd4 {[%clk 0:01:43]} 38... e5 {[%clk 0:01:08]}
39. Nb5 {[%clk 0:01:37.8]} 39... b3 {[%clk 0:01:05.1]} 40. Nd6 {[%clk
0:01:37.6]} 40... Rc1+ {[%clk 0:01:04.3]} 41. Kg2 {[%clk 0:01:37.1]} 41... b2
{[%clk 0:01:05.2]} 42. Nxf7 {[%clk 0:01:05.3]} 42... b1=Q {[%clk 0:01:04.1]} 43.
Nxh6+ {[%clk 0:01:05.3]} 43... Kf8 {[%clk 0:01:04.4]} 0-1

[Event "Late-Titled-Tuesday-Blitz-February-06-2024"]
[Site "Chess.com"]
[Date "2024.02.06"]
[Round "2"]
[White "Lennis93"]
[Black "Ready4abattle"]
[Result "1-0"]
[WhiteElo "2682"]
[BlackElo "2305"]
[TimeControl "180+1"]
[EndTime "14:16:42 PST"]
[Termination "Lennis93 won by resignation"]

1. d4 {[%clk 0:03:00.9]} 1... Nf6 {[%clk 0:02:59.7]} 2. c4 {[%clk 0:02:49.3]}
2... g6 {[%clk 0:02:54.9]} 3. Nc3 {[%clk 0:02:48.7]} 3... d5 {[%clk 0:02:55.2]}
4. Nf3 {[%clk 0:02:48]} 4... Bg7 {[%clk 0:02:55]} 5. Bf4 {[%clk 0:02:48.7]} 5...
O-O {[%clk 0:02:53.7]} 6. Rc1 {[%clk 0:02:49.3]} 6... dxc4 {[%clk 0:02:45.6]} 7.
e3 {[%clk 0:02:36.3]} 7... c5 {[%clk 0:02:42.6]} 8. dxc5 {[%clk 0:02:25.3]} 8...
Qa5 {[%clk 0:02:40.2]} 9. Bxc4 {[%clk 0:02:17.2]} 9... Qxc5 {[%clk 0:02:39.9]}
10. Bb3 {[%clk 0:01:16.3]} 10... Nc6 {[%clk 0:02:38.2]} 11. O-O {[%clk
0:01:15.4]} 11... Qh5 {[%clk 0:02:33.2]} 12. h3 {[%clk 0:01:12.1]} 12... e5
{[%clk 0:02:22.1]} 13. Bh2 {[%clk 0:01:06.5]} 13... Rd8 {[%clk 0:02:13.8]} 14.
Qe2 {[%clk 0:01:06.2]} 14... e4 {[%clk 0:02:03.9]} 15. Nd4 {[%clk 0:01:02.7]}
15... Nxd4 {[%clk 0:01:51.6]} 16. Qxh5 {[%clk 0:00:46.6]} 16... Nxh5 {[%clk
0:01:52.5]} 17. exd4 {[%clk 0:00:46.6]} 17... Bxd4 {[%clk 0:01:29.1]} 18. Nxe4
{[%clk 0:00:46.1]} 18... Bf5 {[%clk 0:01:08.9]} 19. Nd6 {[%clk 0:00:27.9]} 19...
Bxb2 {[%clk 0:01:01.5]} 20. Rc7 {[%clk 0:00:15.8]} 20... Rd7 {[%clk 0:01:01.7]}
21. Bxf7+ {[%clk 0:00:13.6]} 21... Kg7 {[%clk 0:00:59.6]} 22. Nxf5+ {[%clk
0:00:13.2]} 1-0

[Event "Late-Titled-Tuesday-Blitz-February-06-2024"]
[Site "Chess.com"]
[Date "2024.02.06"]
[Round "2"]
[White "djano"]
[Black "spaski2004"]
[Result "1-0"]
[WhiteElo "2624"]
[BlackElo "2942"]
[TimeControl "180+1"]
[EndTime "14:16:43 PST"]
[Termination "djano won by resignation"]

1. e4 {[%clk 0:03:00.9]} 1... c6 {[%clk 0:02:52.8]} 2. d4 {[%clk 0:03:00.7]}
2... d6 {[%clk 0:02:49.9]} 3. Nc3 {[%clk 0:03:00.1]} 3... b5 {[%clk 0:02:39.3]}
4. Nf3 {[%clk 0:02:56.5]} 4... Bg4 {[%clk 0:02:35.5]} 5. h3 {[%clk 0:02:54.8]}
5... Bxf3 {[%clk 0:02:26.9]} 6. Qxf3 {[%clk 0:02:54.6]} 6... b4 {[%clk
0:02:24.5]} 7. Nd1 {[%clk 0:02:46.6]} 7... e6 {[%clk 0:02:24.4]} 8. Bd3 {[%clk
0:02:45.1]} 8... d5 {[%clk 0:02:24.3]} 9. O-O {[%clk 0:02:43.7]} 9... Nd7 {[%clk
0:02:21.8]} 10. Ne3 {[%clk 0:02:35.5]} 10... g6 {[%clk 0:02:18.8]} 11. Re1
{[%clk 0:02:32.7]} 11... Ne7 {[%clk 0:02:18.6]} 12. Bd2 {[%clk 0:02:30]} 12...
a5 {[%clk 0:02:17.2]} 13. exd5 {[%clk 0:02:18.3]} 13... cxd5 {[%clk 0:02:15.8]}
14. Bb5 {[%clk 0:02:06.3]} 14... Bg7 {[%clk 0:02:15]} 15. Nxd5 {[%clk
0:01:50.6]} 15... exd5 {[%clk 0:01:47.2]} 16. Qxd5 {[%clk 0:01:49.9]} 16... Ra7
{[%clk 0:01:47.6]} 17. Bg5 {[%clk 0:01:47.6]} 17... f6 {[%clk 0:01:44.5]} 18.
Bf4 {[%clk 0:01:32.9]} 18... Rf8 {[%clk 0:01:10.5]} 19. Re2 {[%clk 0:01:25.9]}
19... Rf7 {[%clk 0:01:09.8]} 20. Rae1 {[%clk 0:01:24.9]} 20... Bf8 {[%clk
0:00:59.7]} 21. Bd6 {[%clk 0:01:12.4]} 21... Qb6 {[%clk 0:00:28.1]} 22. Bxe7
{[%clk 0:01:02.4]} 1-0

[Event "Late-Titled-Tuesday-Blitz-February-06-2024"]
[Site "Chess.com"]
[Date "2024.02.06"]
[Round "2"]
[White "carloseduar100"]
[Black "RantomOpening"]
[Result "0-1"]
[WhiteElo "2332"]
[BlackElo "2535"]
[TimeControl "180+1"]
[EndTime "14:16:51 PST"]
[Termination "RantomOpening won by checkmate"]

1. e4 {[%clk 0:03:00.9]} 1... c5 {[%clk 0:03:00.1]} 2. Nf3 {[%clk 0:03:01]} 2...
e6 {[%clk 0:03:00.2]} 3. g3 {[%clk 0:03:01.5]} 3... Nc6 {[%clk 0:03:00.2]} 4.
Bg2 {[%clk 0:03:02]} 4... Nf6 {[%clk 0:03:00]} 5. O-O {[%clk 0:03:02.5]} 5... d5
{[%clk 0:03:00.5]} 6. exd5 {[%clk 0:03:02.3]} 6... exd5 {[%clk 0:03:01.4]} 7.
Re1+ {[%clk 0:03:02.6]} 7... Be7 {[%clk 0:03:01.5]} 8. d4 {[%clk 0:03:03.5]}
8... cxd4 {[%clk 0:03:01.8]} 9. Nxd4 {[%clk 0:03:04.4]} 9... Bg4 {[%clk
0:03:02.2]} 10. Nxc6 {[%clk 0:02:52.6]} 10... bxc6 {[%clk 0:03:01.4]} 11. Qd4
{[%clk 0:02:52.4]} 11... O-O {[%clk 0:02:59.7]} 12. Bg5 {[%clk 0:02:52.2]} 12...
Be6 {[%clk 0:02:58.6]} 13. Nd2 {[%clk 0:02:51.4]} 13... h6 {[%clk 0:02:57.9]}
14. Bf4 {[%clk 0:02:49.9]} 14... c5 {[%clk 0:02:53.1]} 15. Qd3 {[%clk
0:02:44.5]} 15... Rc8 {[%clk 0:02:47.5]} 16. c3 {[%clk 0:02:36.4]} 16... Qd7
{[%clk 0:02:43.9]} 17. Nf3 {[%clk 0:02:32.5]} 17... Bd6 {[%clk 0:02:41]} 18. Ne5
{[%clk 0:02:31.4]} 18... Qc7 {[%clk 0:02:41.2]} 19. Bf3 {[%clk 0:02:11.3]} 19...
g5 {[%clk 0:02:40]} 20. Ng6 {[%clk 0:01:31]} 20... Rfe8 {[%clk 0:02:29.7]} 21.
Bxd6 {[%clk 0:01:29.9]} 21... Qxd6 {[%clk 0:02:30.6]} 22. Ne5 {[%clk 0:01:28.6]}
22... Kg7 {[%clk 0:02:25.8]} 23. Rad1 {[%clk 0:01:21]} 23... Re7 {[%clk
0:02:21.8]} 24. c4 {[%clk 0:01:11.9]} 24... d4 {[%clk 0:02:20.1]} 25. b3 {[%clk
0:01:12]} 25... Rce8 {[%clk 0:02:19]} 26. Bc6 {[%clk 0:01:03.1]} 26... Bd7
{[%clk 0:02:13.8]} 27. Bxd7 {[%clk 0:01:02.8]} 27... Nxd7 {[%clk 0:02:14.1]} 28.
Nf3 {[%clk 0:01:01.4]} 28... Rxe1+ {[%clk 0:02:12.9]} 29. Rxe1 {[%clk
0:01:02.3]} 29... Rxe1+ {[%clk 0:02:12.6]} 30. Nxe1 {[%clk 0:01:03.2]} 30... Ne5
{[%clk 0:02:11.8]} 31. Qe4 {[%clk 0:01:01.5]} 31... Qe6 {[%clk 0:02:12]} 32. Nf3
{[%clk 0:00:18.7]} 32... Nxf3+ {[%clk 0:02:10.6]} 33. Qxf3 {[%clk 0:00:19.6]}
33... Qd6 {[%clk 0:02:06.6]} 34. Kf1 {[%clk 0:00:15.8]} 34... Qg6 {[%clk
0:02:03.5]} 35. Qd5 {[%clk 0:00:14.5]} 35... d3 {[%clk 0:01:31]} 36. Qxc5 {[%clk
0:00:12.4]} 36... Qe4 {[%clk 0:01:31.5]} 37. Qe3 {[%clk 0:00:11.7]} 37... Qh1#
{[%clk 0:01:31.5]} 0-1

[Event "Late-Titled-Tuesday-Blitz-February-06-2024"]
[Site "Chess.com"]
[Date "2024.02.06"]
[Round "2"]
[White "gahryman"]
[Black "gurudub"]
[Result "1-0"]
[WhiteElo "2680"]
[BlackElo "2103"]
[TimeControl "180+1"]
[EndTime "14:16:54 PST"]
[Termination "gahryman won on time"]

1. e4 {[%clk 0:03:00.9]} 1... c5 {[%clk 0:02:59.5]} 2. Nf3 {[%clk 0:02:59.6]}
2... d6 {[%clk 0:02:59.1]} 3. d4 {[%clk 0:02:59.8]} 3... cxd4 {[%clk 0:03:00]}
4. Qxd4 {[%clk 0:03:00.4]} 4... Nc6 {[%clk 0:02:54.6]} 5. Bb5 {[%clk 0:02:59.9]}
5... Bd7 {[%clk 0:02:55.2]} 6. Bxc6 {[%clk 0:02:59.9]} 6... Bxc6 {[%clk
0:02:56.1]} 7. Nc3 {[%clk 0:03:00.3]} 7... Nf6 {[%clk 0:02:55.7]} 8. Bg5 {[%clk
0:03:00.3]} 8... e6 {[%clk 0:02:27.6]} 9. O-O-O {[%clk 0:02:59.5]} 9... Be7
{[%clk 0:02:23.7]} 10. Rhe1 {[%clk 0:02:59.5]} 10... Qc7 {[%clk 0:02:21.4]} 11.
Nd5 {[%clk 0:02:30.6]} 11... exd5 {[%clk 0:01:18]} 12. exd5 {[%clk 0:02:30.4]}
12... Nxd5 {[%clk 0:01:18.1]} 13. Qxg7 {[%clk 0:02:05.3]} 13... O-O-O {[%clk
0:01:05.1]} 14. Rxd5 {[%clk 0:02:05.1]} 14... Bxd5 {[%clk 0:00:42.6]} 15. Rxe7
{[%clk 0:02:04.5]} 15... Qc4 {[%clk 0:00:19.9]} 16. b3 {[%clk 0:02:04.2]} 16...
Qa6 {[%clk 0:00:17.9]} 17. Qc3+ {[%clk 0:02:00.1]} 17... Kb8 {[%clk 0:00:17]}
18. Nd4 {[%clk 0:01:36.6]} 18... Rc8 {[%clk 0:00:17.3]} 19. Qb4 {[%clk
0:01:35.2]} 19... Qxa2 {[%clk 0:00:14.4]} 20. Qxd6+ {[%clk 0:01:32.5]} 20... Ka8
{[%clk 0:00:14.6]} 21. Qxd5 {[%clk 0:01:23.6]} 21... Qa1+ {[%clk 0:00:15.1]} 22.
Kd2 {[%clk 0:01:23.9]} 22... Qa6 {[%clk 0:00:12.3]} 23. Nb5 {[%clk 0:01:19.9]}
23... Qa5+ {[%clk 0:00:03.5]} 24. b4 {[%clk 0:01:06.3]} 24... Qxb4+ {[%clk
0:00:02.9]} 25. Kc1 {[%clk 0:01:06.6]} 1-0

[Event "Late-Titled-Tuesday-Blitz-February-06-2024"]
[Site "Chess.com"]
[Date "2024.02.06"]
[Round "2"]
[White "Mikhail_Golubev"]
[Black "nihalsarin"]
[Result "0-1"]
[WhiteElo "2661"]
[BlackElo "3109"]
[TimeControl "180+1"]
[EndTime "14:16:55 PST"]
[Termination "nihalsarin won on time"]

1. e4 {[%clk 0:03:00.9]} 1... c6 {[%clk 0:02:58.7]} 2. Nf3 {[%clk 0:02:58.8]}
2... d5 {[%clk 0:02:59.6]} 3. Nc3 {[%clk 0:02:58.8]} 3... Bg4 {[%clk 0:03:00.2]}
4. h3 {[%clk 0:02:57.8]} 4... Bh5 {[%clk 0:02:58.8]} 5. exd5 {[%clk 0:02:54.8]}
5... cxd5 {[%clk 0:02:59.7]} 6. g4 {[%clk 0:02:54.7]} 6... Bg6 {[%clk
0:03:00.2]} 7. Ne5 {[%clk 0:02:54.1]} 7... Nc6 {[%clk 0:03:00.1]} 8. d4 {[%clk
0:02:54.3]} 8... e6 {[%clk 0:02:56.5]} 9. h4 {[%clk 0:02:45.3]} 9... f6 {[%clk
0:02:53.6]} 10. Nxg6 {[%clk 0:02:26.5]} 10... hxg6 {[%clk 0:02:54.5]} 11. Bd3
{[%clk 0:02:26.6]} 11... Nge7 {[%clk 0:02:50.4]} 12. Ne2 {[%clk 0:02:22.3]}
12... Qd7 {[%clk 0:02:45.5]} 13. c3 {[%clk 0:02:18.8]} 13... O-O-O {[%clk
0:02:43.8]} 14. Be3 {[%clk 0:02:07.5]} 14... g5 {[%clk 0:02:39.5]} 15. h5 {[%clk
0:02:01.5]} 15... Kb8 {[%clk 0:02:38.8]} 16. Qa4 {[%clk 0:01:55.1]} 16... Nc8
{[%clk 0:02:37.1]} 17. O-O-O {[%clk 0:01:51.3]} 17... Nb6 {[%clk 0:02:35.3]} 18.
Qc2 {[%clk 0:01:50.8]} 18... Rc8 {[%clk 0:02:31.6]} 19. a3 {[%clk 0:01:40.5]}
19... Na5 {[%clk 0:02:30.6]} 20. f4 {[%clk 0:01:33.7]} 20... Nbc4 {[%clk
0:02:24.8]} 21. Bf2 {[%clk 0:01:30.6]} 21... Qb5 {[%clk 0:02:24.6]} 22. b4
{[%clk 0:01:17.4]} 22... Qd7 {[%clk 0:02:03.8]} 23. bxa5 {[%clk 0:00:29.6]}
23... Bxa3+ {[%clk 0:02:04.7]} 24. Kb1 {[%clk 0:00:29.3]} 24... Qb5+ {[%clk
0:02:05.5]} 25. Ka2 {[%clk 0:00:24.5]} 25... Qxa5 {[%clk 0:02:06.1]} 26. Qb3
{[%clk 0:00:14.9]} 26... Rc6 {[%clk 0:01:45.9]} 27. Bxc4 {[%clk 0:00:14.9]}
27... Bd6+ {[%clk 0:01:36.2]} 28. Kb2 {[%clk 0:00:08.2]} 28... dxc4 {[%clk
0:01:33.3]} 29. Qa2 {[%clk 0:00:04.5]} 29... Rb6+ {[%clk 0:01:29.7]} 30. Ka1
{[%clk 0:00:04]} 30... Qd5 {[%clk 0:01:30.4]} 31. Rb1 {[%clk 0:00:04.1]} 31...
gxf4 {[%clk 0:01:25.6]} 32. Rxb6 {[%clk 0:00:03.5]} 32... axb6 {[%clk
0:01:26.5]} 33. Rb1 {[%clk 0:00:02.1]} 33... Kc7 {[%clk 0:01:27.2]} 0-1

[Event "Late-Titled-Tuesday-Blitz-February-06-2024"]
[Site "Chess.com"]
[Date "2024.02.06"]
[Round "2"]
[White "Kingstar70"]
[Black "abeljusto"]
[Result "1-0"]
[WhiteElo "2442"]
[BlackElo "2073"]
[TimeControl "180+1"]
[EndTime "14:16:57 PST"]
[Termination "Kingstar70 won on time"]

1. e4 {[%clk 0:03:00.9]} 1... c5 {[%clk 0:02:59]} 2. Nf3 {[%clk 0:03:00.8]} 2...
d6 {[%clk 0:02:59.2]} 3. d4 {[%clk 0:03:00.9]} 3... cxd4 {[%clk 0:02:57.9]} 4.
Nxd4 {[%clk 0:03:01.8]} 4... Nf6 {[%clk 0:02:58]} 5. Nc3 {[%clk 0:03:02.1]} 5...
a6 {[%clk 0:02:57.5]} 6. Rg1 {[%clk 0:03:02.5]} 6... e5 {[%clk 0:02:50.2]} 7.
Nb3 {[%clk 0:03:02.7]} 7... Be6 {[%clk 0:02:48.1]} 8. Be3 {[%clk 0:03:01.5]}
8... Nbd7 {[%clk 0:02:46.4]} 9. Qd2 {[%clk 0:03:01.4]} 9... Be7 {[%clk
0:02:46.2]} 10. O-O-O {[%clk 0:03:01.4]} 10... Rc8 {[%clk 0:02:46]} 11. f3
{[%clk 0:02:59.9]} 11... b5 {[%clk 0:02:31.7]} 12. Kb1 {[%clk 0:02:59.1]} 12...
Nb6 {[%clk 0:02:29.8]} 13. Bxb6 {[%clk 0:02:58.3]} 13... Qxb6 {[%clk 0:02:29.3]}
14. Bd3 {[%clk 0:02:59.2]} 14... O-O {[%clk 0:02:05.8]} 15. g4 {[%clk
0:02:58.8]} 15... d5 {[%clk 0:01:51.7]} 16. exd5 {[%clk 0:02:56.8]} 16... Nxd5
{[%clk 0:01:50.8]} 17. Nxd5 {[%clk 0:02:56.6]} 17... Bxd5 {[%clk 0:01:49]} 18.
Bxh7+ {[%clk 0:02:56.7]} 18... Kxh7 {[%clk 0:01:49.2]} 19. Qxd5 {[%clk 0:02:57]}
19... f6 {[%clk 0:01:29.1]} 20. g5 {[%clk 0:02:53.6]} 20... Rcd8 {[%clk
0:01:26.5]} 21. Qe4+ {[%clk 0:02:52.8]} 21... Kg8 {[%clk 0:01:15.3]} 22. g6
{[%clk 0:02:51.4]} 22... Rxd1+ {[%clk 0:01:13.7]} 23. Rxd1 {[%clk 0:02:50.6]}
23... Rd8 {[%clk 0:01:12]} 24. Rc1 {[%clk 0:02:28.3]} 24... Qe6 {[%clk
0:00:59.8]} 25. Qh4 {[%clk 0:02:24.7]} 25... Kf8 {[%clk 0:00:58.6]} 26. f4
{[%clk 0:02:14.2]} 26... e4 {[%clk 0:00:53.5]} 27. f5 {[%clk 0:02:12.3]} 27...
Qc4 {[%clk 0:00:45.9]} 28. Na5 {[%clk 0:02:05.6]} 28... Qd5 {[%clk 0:00:43.1]}
29. Nc6 {[%clk 0:02:01.9]} 29... Rc8 {[%clk 0:00:33]} 30. Nd4 {[%clk 0:01:59.3]}
30... Bc5 {[%clk 0:00:26.8]} 31. Ne6+ {[%clk 0:01:58.7]} 31... Ke7 {[%clk
0:00:25.9]} 32. Nxg7 {[%clk 0:01:56.4]} 32... e3 {[%clk 0:00:23.4]} 33. Qh7
{[%clk 0:01:56]} 33... Kd6 {[%clk 0:00:21.2]} 34. Ne6 {[%clk 0:01:55.1]} 34...
e2 {[%clk 0:00:17.5]} 35. Nf4 {[%clk 0:01:41.9]} 35... Qd2 {[%clk 0:00:14.6]}
36. Nxe2 {[%clk 0:01:40.2]} 36... Qxe2 {[%clk 0:00:14.5]} 37. Qf7 {[%clk
0:01:40.4]} 37... Qe7 {[%clk 0:00:14]} 38. Rd1+ {[%clk 0:01:36.7]} 38... Ke5
{[%clk 0:00:12.5]} 39. Re1+ {[%clk 0:01:35.5]} 1-0

[Event "Late-Titled-Tuesday-Blitz-February-06-2024"]
[Site "Chess.com"]
[Date "2024.02.06"]
[Round "2"]
[White "tolimachess"]
[Black "ritanovikova"]
[Result "0-1"]
[WhiteElo "2466"]
[BlackElo "2209"]
[TimeControl "180+1"]
[EndTime "14:17:01 PST"]
[Termination "ritanovikova won on time"]

1. e4 {[%clk 0:03:00.9]} 1... d5 {[%clk 0:02:38.7]} 2. exd5 {[%clk 0:02:39.3]}
2... Qxd5 {[%clk 0:02:39.6]} 3. Nc3 {[%clk 0:02:38.4]} 3... Qd6 {[%clk
0:02:39.8]} 4. d4 {[%clk 0:02:31.2]} 4... a6 {[%clk 0:02:38.3]} 5. Nf3 {[%clk
0:02:31.3]} 5... Nf6 {[%clk 0:02:37.7]} 6. g3 {[%clk 0:02:26.5]} 6... Bg4 {[%clk
0:02:33.3]} 7. Bg2 {[%clk 0:02:20.4]} 7... Nc6 {[%clk 0:02:33.4]} 8. Bf4 {[%clk
0:02:17.3]} 8... Qd7 {[%clk 0:02:31.3]} 9. d5 {[%clk 0:01:39]} 9... Nb4 {[%clk
0:02:29.1]} 10. Ne5 {[%clk 0:01:25.1]} 10... Bxd1 {[%clk 0:02:21.9]} 11. Nxd7
{[%clk 0:01:23.5]} 11... Kxd7 {[%clk 0:01:40.1]} 12. Kxd1 {[%clk 0:01:12.2]}
12... c6 {[%clk 0:01:39.3]} 13. dxc6+ {[%clk 0:00:38.4]} 13... Nxc6 {[%clk
0:01:38.3]} 14. Ke1 {[%clk 0:00:23.2]} 14... e5 {[%clk 0:01:28.9]} 15. Rd1+
{[%clk 0:00:20.5]} 15... Ke6 {[%clk 0:01:26.5]} 16. Be3 {[%clk 0:00:09.9]} 16...
Bb4 {[%clk 0:01:21.9]} 17. Bh3+ {[%clk 0:00:09.8]} 17... Ke7 {[%clk 0:01:19]}
18. a3 {[%clk 0:00:10.4]} 18... Bxc3+ {[%clk 0:01:18.2]} 19. bxc3 {[%clk
0:00:11.3]} 19... Rhd8 {[%clk 0:01:03.5]} 20. Bc5+ {[%clk 0:00:10.9]} 20... Ke8
{[%clk 0:01:03.8]} 21. Ke2 {[%clk 0:00:11.4]} 21... Ne4 {[%clk 0:01:00.4]} 22.
Bb4 {[%clk 0:00:02.5]} 22... a5 {[%clk 0:00:56.7]} 0-1

[Event "Late-Titled-Tuesday-Blitz-February-06-2024"]
[Site "Chess.com"]
[Date "2024.02.06"]
[Round "2"]
[White "eCztery"]
[Black "akinov-akinseye"]
[Result "1-0"]
[WhiteElo "2416"]
[BlackElo "1908"]
[TimeControl "180+1"]
[EndTime "14:17:02 PST"]
[Termination "eCztery won by resignation"]

1. e4 {[%clk 0:02:50.9]} 1... e5 {[%clk 0:02:58.9]} 2. Nf3 {[%clk 0:02:42.4]}
2... d6 {[%clk 0:02:53.4]} 3. d4 {[%clk 0:02:43.3]} 3... exd4 {[%clk 0:02:52.3]}
4. Bc4 {[%clk 0:02:35.4]} 4... Be7 {[%clk 0:02:50.9]} 5. Qxd4 {[%clk 0:02:34.4]}
5... Nf6 {[%clk 0:02:51]} 6. O-O {[%clk 0:02:34.4]} 6... O-O {[%clk 0:02:50.4]}
7. Nc3 {[%clk 0:02:33.4]} 7... Nc6 {[%clk 0:02:49.6]} 8. Qd1 {[%clk 0:02:21]}
8... Bg4 {[%clk 0:02:49.2]} 9. h3 {[%clk 0:02:19.9]} 9... Bh5 {[%clk 0:02:48.1]}
10. Bf4 {[%clk 0:02:16.7]} 10... Ne5 {[%clk 0:02:41.6]} 11. Bxe5 {[%clk
0:02:15.1]} 11... Bxf3 {[%clk 0:02:41.1]} 12. Qxf3 {[%clk 0:02:07.7]} 12... dxe5
{[%clk 0:02:40.7]} 13. Rad1 {[%clk 0:02:08.6]} 13... Qc8 {[%clk 0:02:38.9]} 14.
Qg3 {[%clk 0:02:04.8]} 14... Bd6 {[%clk 0:02:25.6]} 15. Nb5 {[%clk 0:02:04.6]}
15... Nxe4 {[%clk 0:02:18.2]} 16. Qf3 {[%clk 0:01:56.5]} 16... Ng5 {[%clk
0:02:13.1]} 17. Qe3 {[%clk 0:01:51.2]} 17... Ne6 {[%clk 0:02:03.3]} 18. Nxd6
{[%clk 0:01:47.3]} 18... cxd6 {[%clk 0:02:02.1]} 19. Bd5 {[%clk 0:01:42.2]}
19... Nf4 {[%clk 0:01:51.4]} 20. Bb3 {[%clk 0:01:40.3]} 20... Qc7 {[%clk
0:01:46.2]} 21. g3 {[%clk 0:01:37.3]} 21... Ng6 {[%clk 0:01:29.3]} 22. Rd3
{[%clk 0:01:32.4]} 22... a6 {[%clk 0:01:21.8]} 23. Rfd1 {[%clk 0:01:31.4]} 23...
Rad8 {[%clk 0:01:21.3]} 24. Qd2 {[%clk 0:01:30.8]} 24... Qc8 {[%clk 0:01:00.5]}
25. Kg2 {[%clk 0:01:25.7]} 25... Qc6+ {[%clk 0:00:59.7]} 26. Kg1 {[%clk
0:01:21.3]} 26... Qc8 {[%clk 0:00:57.2]} 27. Kh2 {[%clk 0:01:21.1]} 27... Qc5
{[%clk 0:00:52.1]} 28. Rd5 {[%clk 0:01:10.8]} 28... Qb6 {[%clk 0:00:48.7]} 29.
Kg1 {[%clk 0:01:11.4]} 29... a5 {[%clk 0:00:29.2]} 30. Rxa5 {[%clk 0:01:04.5]}
30... d5 {[%clk 0:00:23.6]} 31. Rxd5 {[%clk 0:01:04]} 31... Qf6 {[%clk
0:00:23.2]} 32. Rxd8 {[%clk 0:01:02.5]} 32... Rxd8 {[%clk 0:00:20.3]} 33. Qxd8+
{[%clk 0:01:03.4]} 1-0